bitfinex/quotes_SOLUSD_20220113
["timestamp","ask_amount","ask_price","bid_price","bid_amount"]
[1642097423165,20.14052603,151.23,151.19,9.9196]
[1642097423363,14.14052603,151.23,151.15,42.9243]
[1642097424466,14.39052603,151.23,151.15,42.9243]
[1642097424667,2.645,151.24,151.15,42.9243]
[1642097424868,3.7920662,151.26,151.18,9.9203]
[1642097425067,3.7920662,151.26,151.18,10.1703]
[1642097425269,3.7920662,151.26,151.19,2.645]
[1642097425469,3.7920662,151.26,151.18,2.645]
[1642097425673,17.58157852,151.25,151.18,2.645]
[1642097425870,17.58157852,151.25,151.18,2.895]
[1642097427071,17.58157852,151.25,151.21,9.9179]
[1642097429678,17.58157852,151.25,151.18,2.645]
[1642097429891,83.97157852,151.25,151.19,9.919]
[1642097430090,84.22157852,151.25,151.19,9.919]
[1642097430291,2.645,151.24,151.18,2.645]
[1642097430491,2.645,151.28,151.18,9.86]
[1642097430691,3.7920662,151.26,151.19,2.644]
[1642097430894,3.7920662,151.26,151.22,9.9171]
[1642097431393,3.7920662,151.26,151.2,9.61]
[1642097431594,2.644,151.27,151.2,9.61]
[1642097431994,2.644,151.31,151.2,9.61]
[1642097432393,8.894,151.31,151.2,9.61]
[1642097432792,30.23063734,151.31,151.2,9.61]
[1642097433193,9.9203,151.29,151.2,9.61]
[1642097433396,2.644,151.28,151.2,9.61]
[1642097433595,2.894,151.28,151.2,9.61]
[1642097434195,2.644,151.28,151.2,9.61]
[1642097434395,2.644,151.29,151.2,19.5289]
[1642097434594,2.644,151.3,151.2,19.5289]
[1642097434794,2.644,151.3,151.2,25.4909]
[1642097434996,2.644,151.3,151.2,31.7509]
[1642097435294,2.644,151.3,151.25,9.9139]
[1642097435496,2.644,151.3,151.25,10.1639]
[1642097435898,2.644,151.3,151.25,9.9139]
[1642097436096,69.034,151.33,151.25,9.9139]
[1642097436295,2.644,151.33,151.25,10.1639]
[1642097437098,2.144,151.33,151.25,10.1639]
[1642097437297,3.7920662,151.34,151.29,9.9125]
[1642097437902,3.2920662,151.34,151.29,9.9125]
[1642097438308,17.69903892,151.35,151.29,9.9125]
[1642097439711,84.33903892,151.35,151.28,9.9136]
[1642097440011,26.59103892,151.35,151.28,9.9136]
[1642097440212,26.59103892,151.35,151.26,2.642]
[1642097440411,26.59103892,151.35,151.24,9.61]
[1642097440618,26.59103892,151.35,151.22,12.502]
[1642097440811,26.59103892,151.35,151.23,0.25]
[1642097441712,66.39,151.34,151.22,22.1696]
[1642097441911,2.644,151.33,151.22,2.642]
[1642097442114,66.39,151.32,151.2,2.644]
[1642097442315,2.644,151.31,151.19,12.254]
[1642097442513,8.894,151.31,151.19,12.254]
[1642097442711,18.29605887,151.3,151.19,12.254]
[1642097442913,2.644,151.29,151.19,12.254]
[1642097443115,8.894,151.29,151.2,9.9188]
[1642097443718,8.894,151.29,151.19,2.644]
[1642097443916,66.39,151.28,151.19,2.644]
[1642097444116,2.644,151.27,151.19,10.91049815]
[1642097444317,2.894,151.28,151.19,10.91049815]
[1642097444517,18.29605887,151.3,151.19,10.91049815]
[1642097444916,24.54605887,151.3,151.19,10.91049815]
[1642097445117,34.46495887,151.3,151.19,10.91049815]
[1642097445617,34.21495887,151.3,151.19,11.16049815]
[1642097445916,34.21495887,151.3,151.19,12.5635]
[1642097446516,18.29605887,151.3,151.19,12.8135]
[1642097446718,20.94005887,151.3,151.19,12.8135]
[1642097447018,87.33005887,151.3,151.19,12.8135]
[1642097447217,20.94005887,151.3,151.19,12.8135]
[1642097447517,20.94005887,151.3,151.2,9.61]
[1642097447717,2.644,151.34,151.24,9.9162]
[1642097447918,2.644,151.34,151.25,12.252]
[1642097448125,5.18788837,151.35,151.26,9.61]
[1642097448318,5.18788837,151.35,151.27,2.642]
[1642097448548,8.642,151.38,151.27,2.642]
[1642097448748,13.57624569,151.34,151.27,2.642]
[1642097448949,13.82624569,151.34,151.27,2.642]
[1642097449149,66.39,151.33,151.27,2.642]
[1642097449347,69.032,151.33,151.24,9.61]
[1642097449547,2.642,151.33,151.24,9.61]
[1642097449748,2.642,151.33,151.25,2.70996728]
[1642097449950,2.642,151.33,151.26,9.61]
[1642097450151,2.642,151.33,151.27,2.642]
[1642097450351,2.642,151.33,151.3,9.9109]
[1642097450553,2.642,151.33,151.31,6.06439993]
[1642097450756,2.642,151.33,151.31,8.70639993]
[1642097451151,2.642,151.33,151.31,6.06439993]
[1642097451953,2.642,151.33,151.32,9.9111]
[1642097453156,2.642,151.33,151.31,6.06439993]
[1642097453356,16.24977207,151.36,151.31,6.06439993]
[1642097453557,16.49977207,151.36,151.31,6.06439993]
[1642097453757,16.24977207,151.36,151.31,6.06439993]
[1642097454860,1.89419827,151.34,151.31,6.06439993]
[1642097455062,18.85990674,151.33,151.31,6.06439993]
[1642097455261,18.85990674,151.33,151.28,9.61]
[1642097455460,18.85990674,151.33,151.28,9.86]
[1642097455862,18.85990674,151.33,151.29,2.642]
[1642097456064,18.85990674,151.33,151.29,2.892]
[1642097456664,18.85990674,151.33,151.29,2.642]
[1642097457063,18.85990674,151.33,151.26,12.252]
[1642097457264,18.85990674,151.33,151.26,9.61]
[1642097457466,19.10990674,151.33,151.26,9.61]
[1642097457666,69.032,151.32,151.23,11.4591046]
[1642097457863,9.92,151.3,151.13,2.644]
[1642097458065,12.254,151.29,151.13,2.644]
[1642097458264,12.254,151.29,151.12,402.8754383]
[1642097458265,20.076,151.29,151.12,402.8754383]
[1642097458465,27.97599521,151.29,151.12,402.8754383]
[1642097458664,16.59257972,151.28,151.12,402.8754383]
[1642097458865,12.255,151.27,151.12,402.8754383]
[1642097459065,9.9245,151.24,151.13,0.06601966]
[1642097459267,13.79126983,151.25,151.13,0.06601966]
[1642097459466,19.79126983,151.25,151.13,0.06601966]
[1642097459795,76.0,151.24,151.13,0.06601966]
[1642097459967,2.645,151.23,151.13,9.922]
[1642097460166,2.645,151.23,151.13,19.532]
[1642097460464,2.645,151.23,151.13,23.14136725]
[1642097460864,2.645,151.23,151.13,23.39136725]
[1642097461071,16.26878823,151.24,151.16,9.9198]
[1642097461267,16.26878823,151.24,151.17,2.645]
[1642097461467,16.26878823,151.24,151.17,2.895]
[1642097462066,2.645,151.29,151.17,2.895]
[1642097462468,2.895,151.29,151.17,12.8143]
[1642097462668,8.895,151.29,151.17,12.8143]
[1642097463069,2.645,151.29,151.18,17.80828967]
[1642097463268,18.75074174,151.31,151.19,2.644]
[1642097463469,18.75074174,151.31,151.19,14.41399521]
[1642097463669,18.75074174,151.31,151.23,9.9151]
[1642097463869,18.75074174,151.31,151.24,2.644]
[1642097464069,18.75074174,151.31,151.21,2.644]
[1642097464471,18.75074174,151.31,151.21,2.894]
[1642097465173,18.75074174,151.31,151.23,9.9153]
[1642097465370,18.75074174,151.31,151.24,2.644]
[1642097465571,18.75074174,151.31,151.24,2.894]
[1642097466273,2.644,151.35,151.24,12.8088]
[1642097466672,2.644,151.35,151.24,24.32879521]
[1642097466876,2.642,151.4,151.24,30.32879521]
[1642097467074,8.642,151.4,151.24,30.32879521]
[1642097467299,17.76636622,151.39,151.24,22.4188]
[1642097467470,2.642,151.38,151.24,22.4188]
[1642097467872,8.642,151.38,151.24,22.4188]
[1642097468071,8.892,151.38,151.24,22.4188]
[1642097468873,13.87585319,151.36,151.24,22.4188]
[1642097469074,2.642,151.35,151.24,22.4188]
[1642097469474,2.892,151.35,151.24,22.4188]
[1642097469678,66.39,151.34,151.24,22.4188]
[1642097470376,18.53845559,151.33,151.24,22.4188]
[1642097472387,2.644,151.32,151.22,9.9159]
[1642097472587,2.644,151.32,151.21,2.644]
[1642097472787,2.644,151.32,151.2,26.1344]
[1642097473590,2.644,151.32,151.2,26.3844]
[1642097473790,2.644,151.32,151.2,31.60859871]
[1642097473989,18.53845559,151.33,151.2,41.52589871]
[1642097474189,18.53845559,151.33,151.2,41.78589871]
[1642097475002,18.53845559,151.33,151.2,41.85188781]
[1642097475404,18.53845559,151.33,151.2,36.6276891]
[1642097476106,18.53845559,151.33,151.2,45.9776891]
[1642097476305,66.39,151.32,151.2,45.9776891]
[1642097476504,18.15556018,151.3,151.2,45.9776891]
[1642097476706,18.15556018,151.3,151.2,22.4872891]
[1642097476905,18.40556018,151.3,151.2,22.2372891]
[1642097477407,2.644,151.29,151.2,19.5932891]
[1642097477607,18.15556018,151.3,151.21,2.644]
[1642097477906,18.15556018,151.3,151.22,9.916]
[1642097478106,18.15556018,151.3,151.23,2.644]
[1642097479006,18.15556018,151.3,151.23,12.5593]
[1642097479408,2.644,151.34,151.23,12.8093]
[1642097479606,2.644,151.37,151.24,9.61]
[1642097479806,2.644,151.37,151.25,2.642]
[1642097480010,2.644,151.37,151.25,12.762]
[1642097480306,17.22746454,151.36,151.25,12.762]
[1642097480707,17.22746454,151.36,151.25,12.502]
[1642097481407,17.22746454,151.36,151.28,9.912]
[1642097481606,17.22746454,151.36,151.29,2.642]
[1642097482009,19.86946454,151.36,151.28,0.25]
[1642097482208,66.39,151.35,151.28,0.25]
[1642097482812,66.39,151.35,151.26,2.892]
[1642097483013,66.39,151.35,151.26,12.56796292]
[1642097483216,66.39,151.35,151.26,12.502]
[1642097483418,66.39,151.35,151.26,12.252]
[1642097483621,66.64,151.35,151.26,12.252]
[1642097484020,66.39,151.35,151.26,12.252]
[1642097484222,69.032,151.34,151.26,22.1656]
[1642097484420,14.44290072,151.33,151.26,22.1656]
[1642097485723,14.44290072,151.33,151.26,19.7736]
[1642097486126,14.44290072,151.33,151.27,2.642]
[1642097486324,14.44290072,151.33,151.3,9.9111]
[1642097486524,14.44290072,151.33,151.31,6.06439993]
[1642097486922,66.39,151.37,151.31,6.06439993]
[1642097487123,72.39,151.37,151.31,6.06439993]
[1642097487323,6.0,151.37,151.31,6.06439993]
[1642097487523,8.642,151.41,151.31,16.22459993]
[1642097487725,6.0,151.41,151.32,2.70793677]
[1642097487929,16.79412483,151.4,151.32,2.70793677]
[1642097488325,22.79412483,151.4,151.32,0.06593677]
[1642097488526,22.79412483,151.4,151.33,2.642]
[1642097488724,22.79412483,151.4,151.34,9.9086]
[1642097488925,26.58119333,151.4,151.34,9.9086]
[1642097489323,26.58119333,151.4,151.34,10.1586]
[1642097489924,26.58119333,151.4,151.34,9.9086]
[1642097489925,22.79412483,151.4,151.34,9.9086]
[1642097490724,2.642,151.44,151.34,9.9086]
[1642097490928,2.642,151.45,151.34,9.9786]
[1642097491130,2.642,151.48,151.34,42.1972]
[1642097491326,2.642,151.48,151.34,42.4472]
[1642097491725,3.78610761,151.44,151.34,42.4472]
[1642097491925,16.5017074,151.43,151.34,42.1972]
[1642097492124,19.1437074,151.43,151.34,42.1972]
[1642097492327,21.04370261,151.43,151.34,9.68]
[1642097492524,66.39,151.42,151.34,9.68]
[1642097492724,66.39,151.4,151.34,0.07]
[1642097492924,2.642,151.39,151.34,0.07]
[1642097493327,18.1804851,151.38,151.34,0.07]
[1642097493555,18.4304851,151.38,151.34,0.07]
[1642097494627,84.8204851,151.38,151.34,0.07]
[1642097496830,86.47048031,151.38,151.34,0.07]
[1642097497031,84.8204851,151.38,151.34,0.07]
[1642097497334,1.64999521,151.37,151.24,2.642]
[1642097497533,66.39,151.36,151.22,2.642]
[1642097497733,2.642,151.35,151.21,9.61]
[1642097497933,85.47410216,151.34,151.21,12.254]
[1642097498138,66.39,151.32,151.21,12.254]
[1642097498335,82.06011878,151.31,151.22,9.9166]
[1642097498537,82.06011878,151.31,151.23,2.644]
[1642097498937,82.06011878,151.31,151.23,2.894]
[1642097499437,15.67011878,151.31,151.23,2.894]
[1642097499637,15.67011878,151.31,151.23,12.3104]
[1642097500238,15.92011878,151.31,151.23,12.0604]
[1642097500438,15.92011878,151.31,151.23,2.144]
[1642097500439,2.644,151.3,151.23,2.144]
[1642097500640,9.9193,151.29,151.23,2.144]
[1642097500845,66.39,151.27,151.23,2.144]
[1642097501070,2.644,151.26,151.23,2.144]
[1642097501243,2.644,151.26,151.15,9.61]
[1642097501244,18.83493099,151.26,151.16,2.644]
[1642097501645,16.19093099,151.26,151.17,9.61]
[1642097501847,16.19093099,151.26,151.18,2.645]
[1642097502947,16.19093099,151.26,151.18,12.505]
[1642097503550,2.645,151.3,151.2,9.918]
[1642097503749,2.644,151.32,151.21,2.644]
[1642097503947,2.644,151.32,151.21,2.894]
[1642097504148,2.894,151.32,151.19,50.892]
[1642097504347,0.25,151.32,151.19,60.752]
[1642097504548,13.93686782,151.32,151.19,74.52755673]
[1642097504958,14.18686782,151.32,151.19,74.26755673]
[1642097505161,90.49386782,151.32,151.22,9.917]
[1642097505352,2.644,151.31,151.22,9.917]
[1642097505955,75.034,151.31,151.22,9.917]
[1642097506862,2.644,151.31,151.22,9.917]
[1642097507063,13.93686782,151.32,151.22,10.167]
[1642097507262,13.93686782,151.32,151.23,9.61]
[1642097507464,13.93686782,151.32,151.24,2.644]
[1642097507664,13.93686782,151.32,151.26,9.9145]
[1642097509490,2.642,151.33,151.26,9.9145]
[1642097509689,2.642,151.35,151.26,9.9145]
[1642097510491,66.39,151.33,151.26,9.9145]
[1642097510691,66.39,151.33,151.24,12.5576]
[1642097510894,69.034,151.33,151.23,23.791]
[1642097511091,75.034,151.33,151.23,23.791]
[1642097511292,75.354,151.33,151.22,2.644]
[1642097511492,77.00399521,151.33,151.19,37.0959]
[1642097511692,77.00399521,151.33,151.19,12.254]
[1642097511993,77.00399521,151.33,151.19,9.61]
[1642097512491,77.00399521,151.33,151.19,9.86]
[1642097513194,86.92009521,151.33,151.2,9.9187]
[1642097513397,66.39,151.31,151.2,9.9187]
[1642097513597,2.714,151.3,151.2,9.9187]
[1642097513800,18.0446251,151.28,151.2,9.9187]
[1642097513997,69.034,151.27,151.2,9.9187]
[1642097514397,69.284,151.27,151.2,9.9187]
[1642097518508,69.034,151.27,151.2,9.9187]
[1642097518907,2.644,151.27,151.2,9.9187]
[1642097519310,18.0446251,151.28,151.2,9.9187]
[1642097520537,18.2946251,151.28,151.2,9.9187]
[1642097521039,18.2946251,151.28,151.2,15.9187]
[1642097521236,18.2946251,151.28,151.2,9.9187]
[1642097522541,2.644,151.27,151.18,9.9197]
[1642097522741,2.644,151.27,151.17,12.254]
[1642097522942,69.284,151.27,151.17,12.254]
[1642097523341,75.284,151.27,151.17,12.254]
[1642097523843,27.9639251,151.28,151.19,9.9196]
[1642097524058,27.9639251,151.28,151.2,2.644]
[1642097524246,2.645,151.27,151.18,2.645]
[1642097524644,8.645,151.27,151.18,2.645]
[1642097524943,76.3111,151.26,151.18,2.645]
[1642097525244,69.035,151.25,151.18,2.645]
[1642097525642,69.285,151.25,151.17,9.61]
[1642097525943,69.285,151.25,151.16,9.9215]
[1642097526146,79.2067,151.25,151.16,9.9215]
[1642097527046,85.2067,151.25,151.16,9.9215]
[1642097527246,85.2067,151.25,151.15,9.9222]
[1642097527446,85.2067,151.25,151.12,12.255]
[1642097527646,9.9246,151.21,151.11,2.645]
[1642097527845,66.39,151.19,151.1,5.57256083]
[1642097528049,69.036,151.18,151.1,5.57256083]
[1642097528247,69.036,151.18,151.1,3.76317589]
[1642097528447,17.12636047,151.17,151.1,3.76317589]
[1642097528847,17.37636047,151.17,151.1,3.76317589]
[1642097529246,17.37636047,151.17,151.09,9.9255]
[1642097529447,17.37636047,151.17,151.09,10.1755]
[1642097530249,17.37636047,151.17,151.09,9.9255]
[1642097531650,17.37636047,151.17,151.09,10.1755]
[1642097532252,23.37636047,151.17,151.09,10.1755]
[1642097533552,23.37636047,151.17,151.1,2.646]
[1642097534053,23.37636047,151.17,151.1,12.8213]
[1642097534254,23.12636047,151.17,151.1,10.1753]
[1642097534454,23.12636047,151.17,151.1,0.25]
[1642097534754,33.05256047,151.17,151.1,0.25]
[1642097534953,33.05256047,151.17,151.08,6.65917589]
[1642097535355,66.39,151.16,151.08,2.896]
[1642097535555,72.39,151.16,151.08,2.896]
[1642097536157,72.39,151.16,151.09,9.926]
[1642097536457,72.64,151.16,151.09,9.926]
[1642097536658,82.5669,151.16,151.08,2.646]
[1642097536856,85.2129,151.16,151.08,2.646]
[1642097537855,82.5669,151.16,151.08,0.25]
[1642097538058,2.646,151.15,151.07,0.25]
[1642097538359,66.39,151.14,151.06,27.58387589]
[1642097538583,72.64,151.14,151.06,27.58387589]
[1642097539358,72.64,151.14,151.06,3.76317589]
[1642097539558,72.64,151.14,151.06,0.25]
[1642097539958,72.64,151.14,151.05,4.01317589]
[1642097540158,82.5682,151.14,151.05,13.94177589]
[1642097541563,82.5682,151.14,151.06,3.79209878]
[1642097541961,82.5682,151.14,151.06,4.04209878]
[1642097542460,82.5682,151.14,151.06,7.80527467]
[1642097543361,82.5682,151.14,151.07,3.79209878]
[1642097545863,19.77236047,151.17,151.07,12.76509124]
[1642097546089,23.12636047,151.17,151.07,13.01509124]
[1642097546290,23.12636047,151.17,151.07,4.04209878]
[1642097546489,17.12636047,151.17,151.07,10.04209878]
[1642097546693,2.646,151.18,151.07,13.96939878]
[1642097546890,2.646,151.2,151.07,19.96939878]
[1642097547290,8.646,151.2,151.07,19.96939878]
[1642097547492,8.646,151.2,151.08,13.40209878]
[1642097547691,8.646,151.2,151.1,16.00582277]
[1642097547891,8.646,151.2,151.11,2.646]
[1642097548092,8.896,151.2,151.11,2.896]
[1642097548294,8.646,151.2,151.11,2.896]
[1642097548692,2.646,151.2,151.11,2.896]
[1642097549295,2.646,151.2,151.13,9.923]
[1642097549592,2.896,151.2,151.13,9.923]
[1642097549994,12.8201,151.2,151.11,2.896]
[1642097550194,25.6941,151.2,151.11,0.25]
[1642097550592,25.6941,151.2,151.1,10.1754]
[1642097550998,66.39,151.19,151.09,2.646]
[1642097551198,9.9267,151.16,151.09,2.646]
[1642097551398,2.646,151.15,151.09,2.646]
[1642097551594,8.896,151.15,151.09,2.646]
[1642097552195,18.27574053,151.14,151.09,2.646]
[1642097552595,34.45364053,151.14,151.09,2.646]
[1642097552796,24.52574053,151.14,151.09,2.646]
[1642097553594,18.52574053,151.14,151.09,2.646]
[1642097554194,18.52574053,151.14,151.09,9.926]
[1642097555796,18.27574053,151.14,151.08,9.9267]
[1642097556196,84.66574053,151.14,151.08,9.9267]
[1642097557100,84.91574053,151.14,151.07,9.9274]
[1642097557598,84.91574053,151.14,151.05,6.40917589]
[1642097557803,90.91574053,151.14,151.05,4.01317589]
[1642097558603,100.84364053,151.14,151.05,13.94207589]
[1642097559002,100.84364053,151.14,151.05,10.1789]
[1642097559202,34.45364053,151.14,151.05,10.1789]
[1642097559406,24.52574053,151.14,151.05,10.1789]
[1642097560003,24.52574053,151.14,151.06,2.646]
[1642097560205,24.52574053,151.14,151.1,9.9256]
[1642097560902,24.52574053,151.14,151.06,35.7312]
[1642097561102,24.52574053,151.14,151.08,9.9264]
[1642097562202,24.52574053,151.14,151.06,2.646]
[1642097562402,31.04274053,151.14,151.06,2.646]
[1642097563305,66.39,151.13,151.06,2.646]
[1642097563504,69.036,151.12,151.04,13.69257589]
[1642097563705,2.646,151.12,151.04,13.69257589]
[1642097563905,8.896,151.12,151.04,13.94257589]
[1642097564307,6.25,151.12,151.04,12.28848035]
[1642097564510,0.25,151.12,151.04,8.52530446]
[1642097564707,6.25,151.12,151.04,8.52530446]
[1642097565710,0.25,151.12,151.04,14.52530446]
[1642097565909,6.25,151.12,151.04,14.52530446]
[1642097566614,6.25,151.12,151.07,9.9272]
[1642097567016,90.66574053,151.14,151.07,9.9272]
[1642097567612,2.646,151.13,151.04,25.0239]
[1642097567814,2.646,151.13,151.06,9.9281]
[1642097568012,8.646,151.13,151.06,9.9281]
[1642097568512,8.896,151.13,151.06,9.9281]
[1642097569215,75.286,151.13,151.06,9.9281]
[1642097569618,75.286,151.13,151.05,9.9288]
[1642097570015,85.2142,151.13,151.05,9.9288]
[1642097573521,85.2142,151.13,151.04,34.9333]
[1642097575126,85.2142,151.13,151.04,10.1794]
[1642097575326,86.86419521,151.13,151.03,12.5762]
[1642097575526,86.86419521,151.13,151.02,3.76317589]
[1642097576429,86.86419521,151.13,151.02,3.78366962]
[1642097577128,86.86419521,151.13,151.02,13.71446962]
[1642097577329,86.86419521,151.13,151.02,9.9308]
[1642097577530,86.86419521,151.13,151.02,10.1808]
[1642097577829,86.86419521,151.13,151.02,10.2008]
[1642097578229,86.86419521,151.13,151.04,1.89167248]
[1642097579029,85.2142,151.13,151.04,1.89167248]
[1642097579233,85.2142,151.13,151.04,2.14167248]
[1642097579431,82.5682,151.13,151.04,2.14167248]
[1642097579633,85.2142,151.13,151.04,2.14167248]
[1642097579853,79.2142,151.13,151.04,2.14167248]
[1642097580060,79.2142,151.13,151.06,1.89167248]
[1642097580959,85.2142,151.13,151.06,1.89167248]
[1642097583565,85.2142,151.13,151.07,1.89167248]
[1642097583764,82.5682,151.13,151.07,1.89167248]
[1642097584367,84.21819521,151.13,151.07,1.89167248]
[1642097584768,66.39,151.09,151.07,1.89167248]
[1642097584971,17.769445,151.08,151.07,1.89167248]
[1642097585373,24.019445,151.08,151.07,1.89167248]
[1642097586173,33.951545,151.08,151.07,1.89167248]
[1642097586373,33.951545,151.08,151.05,1.89167248]
[1642097587176,100.341545,151.08,151.05,1.89167248]
[1642097589478,105.957545,151.08,151.05,1.89167248]
[1642097589678,2.646,151.07,151.02,3.78990682]
[1642097589879,9.9338,151.05,151.02,3.78990682]
[1642097590079,16.1838,151.05,151.02,3.78990682]
[1642097590285,66.39,151.04,151.02,3.78990682]
[1642097590480,69.288,151.04,151.01,3.76317589]
[1642097591108,9.9351,151.03,150.99,3.76317589]
[1642097591507,16.1851,151.03,150.99,3.76317589]
[1642097592107,81.7973031,151.02,150.99,3.76317589]
[1642097592307,91.7329031,151.02,150.97,3.76317589]
[1642097592508,91.9829031,151.02,150.97,3.76317589]
[1642097592911,98.6579031,151.02,150.97,3.76317589]
[1642097593110,43.0,151.01,150.94,15.80901112]
[1642097593310,43.0,151.01,150.94,13.16101112]
[1642097593311,9.9393,150.97,150.94,13.16101112]
[1642097593509,16.1893,150.97,150.94,13.16101112]
[1642097593709,6.25,150.97,150.94,13.16101112]
[1642097593909,2.649,151.01,150.95,3.03219996]
[1642097594109,6.25,151.01,150.95,3.03219996]
[1642097594509,0.25,151.01,150.95,3.03219996]
[1642097594709,6.25,151.01,150.95,3.03219996]
[1642097595010,72.64,151.01,150.94,5.57256083]
[1642097596312,2.649,151.03,150.94,15.75826083]
[1642097596512,9.61,151.06,150.95,2.649]
[1642097596513,2.649,151.05,150.95,2.649]
[1642097596715,35.4525,151.08,150.95,2.649]
[1642097596912,12.259,151.08,150.96,1.64999521]
[1642097597113,9.61,151.08,150.97,2.648]
[1642097597313,2.648,151.07,150.97,2.648]
[1642097597513,2.648,151.07,150.97,12.8316]
[1642097597813,2.648,151.07,150.97,10.1836]
[1642097598016,2.898,151.07,150.97,10.1836]
[1642097598213,8.898,151.07,150.97,10.1836]
[1642097598413,66.39,151.06,150.97,10.1836]
[1642097598616,66.64,151.06,150.97,9.9336]
[1642097598814,72.64,151.06,150.97,9.9336]
[1642097599614,72.64,151.06,150.97,10.1836]
[1642097599814,82.5744,151.06,150.96,2.648]
[1642097600017,2.648,151.05,150.95,33.9275]
[1642097600215,2.648,151.05,150.95,34.1775]
[1642097600415,8.898,151.05,150.95,34.1775]
[1642097601217,14.979,151.05,150.95,34.1775]
[1642097601416,12.331,151.05,150.95,33.9275]
[1642097601618,12.331,151.05,150.94,12.5838]
[1642097601818,2.649,151.04,150.94,12.8338]
[1642097602019,8.899,151.04,150.94,12.8338]
[1642097602619,66.39,151.03,150.94,12.8338]
[1642097602820,18.5177655,151.02,150.94,10.1858]
[1642097603020,24.7677655,151.02,150.94,10.1858]
[1642097603418,18.7677655,151.02,150.94,9.9358]
[1642097603626,18.7677655,151.02,150.93,2.649]
[1642097603821,2.649,151.01,150.91,2.649]
[1642097604022,16.31699521,151.01,150.9,8.22156083]
[1642097604226,66.39,150.99,150.9,5.57256083]
[1642097604523,2.649,150.98,150.9,5.57256083]
[1642097604823,18.50240182,150.96,150.9,5.57256083]
[1642097605024,66.39,150.94,150.86,5.57256083]
[1642097605224,2.65,150.93,150.86,5.57256083]
[1642097605523,0.25,150.93,150.86,5.57256083]
[1642097606124,0.25,150.93,150.86,15.51376083]
[1642097606324,0.25,150.93,150.86,9.9412]
[1642097606522,75.124,150.93,150.86,9.9412]
[1642097606722,74.874,150.93,150.85,23.6537]
[1642097606926,77.774,150.93,150.85,23.6537]
[1642097607322,8.734,150.93,150.85,23.6537]
[1642097607522,8.734,150.93,150.85,33.5957]
[1642097607724,0.25,150.93,150.85,48.780596]
[1642097608122,8.9,150.95,150.85,49.030596]
[1642097608523,2.9,150.95,150.85,49.030596]
[1642097608722,8.65,150.95,150.85,49.030596]
[1642097608923,2.65,150.95,150.85,49.030596]
[1642097609123,8.65,150.95,150.85,49.030596]
[1642097609524,6.0,150.95,150.86,2.65]
[1642097609726,6.0,150.95,150.87,9.9403]
[1642097609925,0.25,150.95,150.87,9.9403]
[1642097610125,0.25,150.95,150.87,10.1903]
[1642097610326,75.29,150.96,150.87,10.1903]
[1642097610725,75.29,150.96,150.87,9.9403]
[1642097610929,75.29,150.96,150.87,9.9203]
[1642097612131,74.79,150.96,150.87,9.9203]
[1642097614932,74.79,150.96,150.86,9.9412]
[1642097617031,74.79,150.96,150.86,10.1912]
[1642097621273,8.9,150.96,150.86,10.1912]
[1642097621469,8.9,150.96,150.86,16.4512]
[1642097621470,2.65,150.96,150.86,16.4512]
[1642097621670,2.65,151.0,150.87,9.61]
[1642097621870,2.65,151.0,150.92,9.9371]
[1642097622069,91.8168,151.01,150.92,10.1871]
[1642097622368,69.039,151.01,150.92,10.1871]